fUSD/lending_fUSD_20250117
["ID","MTS","AMOUNT","RATE_DAILY","PERIOD"]
[349305914,1737111040568,-500.0,0.00031878,2]
[349305915,1737111040580,-562.29768791,0.00031878,2]
[349305916,1737111040590,-500.0,0.00031878,2]
[349305917,1737111040600,-500.0,0.00031878,2]
[349305918,1737111040610,-501.87636153,0.00031878,2]
[349305919,1737111040619,-500.0,0.00031878,2]
[349305920,1737111040629,-500.0,0.00031878,2]
[349305921,1737111040639,-500.0,0.00031878,2]
[349305922,1737111040649,-500.0,0.00031878,2]
[349305923,1737111040658,-500.0,0.00031878,2]
[349305924,1737111040669,-500.0,0.00031878,2]
[349305925,1737111040681,-500.0,0.00031878,2]
[349305926,1737111040692,-500.0,0.00031878,2]
[349305927,1737111040702,-500.0,0.00031878,2]
[349305928,1737111040711,-479.37,0.00031878,2]
[349305929,1737111040721,-500.0,0.00031878,2]
[349305930,1737111040732,-513.17635972,0.00031878,2]
[349305931,1737111040742,-500.0,0.00031878,2]
[349305932,1737111040753,-500.0,0.00031878,2]
[349305933,1737111040764,-500.0,0.00031878,2]
[349305934,1737111040775,-500.0,0.00031878,2]
[349305935,1737111040784,-500.0,0.00031878,2]
[349305936,1737111040823,-500.0,0.00031878,2]
[349305937,1737111040836,-500.0,0.00031878,2]
[349305938,1737111040846,-500.0,0.00031878,2]
[349305939,1737111040855,-500.0,0.00031878,2]
[349305940,1737111040865,-500.0,0.00031878,2]
[349305941,1737111040875,-500.0,0.00031878,2]
[349305942,1737111040884,-500.0,0.00031878,2]
[349305943,1737111040894,-500.0,0.00031878,2]
[349305944,1737111040903,-500.0,0.00031878,2]
[349305945,1737111040913,-500.0,0.00031878,2]
[349305946,1737111040922,-500.0,0.00031878,2]
[349305947,1737111040931,-500.0,0.00031878,2]
[349305948,1737111040940,-500.0,0.00031878,2]
[349305949,1737111040949,-500.0,0.00031878,2]
[349305950,1737111040959,-500.0,0.00031878,2]
[349305951,1737111040968,-500.0,0.00031878,2]
[349305952,1737111040979,-500.0,0.00031878,2]
[349305953,1737111040990,-500.0,0.00031878,2]
[349305954,1737111041001,-500.0,0.00031878,2]
[349305955,1737111041010,-500.0,0.00031878,2]
[349305956,1737111041020,-500.0,0.00031878,2]
[349305957,1737111041029,-500.0,0.00031878,2]
[349305958,1737111041039,-500.0,0.00031878,2]
[349305959,1737111041049,-347.12,0.00031878,2]
[349305960,1737111041059,-500.0,0.00031878,2]
[349305961,1737111041068,-500.0,0.00031878,2]
[349305962,1737111041082,-500.0,0.00031878,2]
[349305963,1737111041092,-684.5,0.00031878,2]
[349305964,1737111041101,-500.0,0.00031878,2]
[349305965,1737111041111,-684.5,0.00031878,2]
[349305966,1737111041120,-500.0,0.00031878,2]
[349305967,1737111041129,-500.0,0.00031878,2]
[349305968,1737111041138,-500.0,0.00031878,2]
[349305969,1737111041147,-500.0,0.00031878,2]
[349305970,1737111041157,-500.0,0.00031878,2]
[349305971,1737111041166,-500.0,0.00031878,2]
[349305972,1737111041175,-500.0,0.00031878,2]
[349305973,1737111041184,-684.5,0.00031878,2]
[349305974,1737111041193,-500.0,0.00031878,2]
[349305975,1737111041203,-500.0,0.00031878,2]
[349305976,1737111041212,-500.0,0.00031878,2]
[349305977,1737111041222,-54765.1216598,0.00031878,2]
[349305978,1737111041241,-7091.78198364,0.00031878,2]
[349305979,1737111041251,-182.02159869,0.00031879,30]
[349305980,1737111041261,-43920.77648105,0.00031879,10]
[349305981,1737111041281,-500.0,0.00031878,2]
[349305982,1737111041295,-97.935982,0.00031878,2]
[349305983,1737111041483,-402.064018,0.00031878,2]
[349305984,1737111041494,-9929.18597413,0.00031879,10]
[349305985,1737111041506,-7440.00001,0.00031879,10]
[349305986,1737111041590,-500.0,0.00031877,2]
[349305987,1737111041600,-164.62,0.00031878,2]
[349305988,1737111041611,-335.38,0.00031878,2]
[349305989,1737111041620,-175.87,0.00031878,2]
[349306011,1737111042819,-500.0,0.00031726,2]
[349306013,1737111042830,-500.0,0.00031877,2]
[349306014,1737111042840,-356.7040842,0.00031877,2]
[349306015,1737111042851,-500.0,0.00031877,2]
[349306016,1737111042861,-324.13,0.00031878,2]
[349306017,1737111042870,-500.0,0.00031878,2]
[349306018,1737111042880,-500.0,0.00031878,2]
[349306019,1737111042891,-500.0,0.00031878,2]
[349306020,1737111042902,-500.0,0.00031878,2]
[349306021,1737111042913,-500.0,0.00031878,2]
[349306022,1737111042925,-684.5,0.00031878,2]
[349306023,1737111042935,-500.0,0.00031878,2]
[349306024,1737111042944,-500.0,0.00031878,2]
[349306025,1737111042953,-473.90762236,0.00031878,2]
[349306026,1737111042975,-26.09237764,0.00031878,2]
[349306027,1737111042986,-500.0,0.00031878,2]
[349306028,1737111042996,-223.52382441,0.00031878,2]
[349306029,1737111043007,-460.97617559,0.00031878,2]
[349306030,1737111043017,-457.0399152,0.00031878,2]
[349306031,1737111043028,-42.9600848,0.00031878,2]
[349306032,1737111043037,-500.0,0.00031878,2]
[349306033,1737111043046,-500.0,0.00031878,2]
[349306034,1737111043057,-500.0,0.00031878,2]
[349306035,1737111043066,-500.0,0.00031878,2]
[349306036,1737111043076,-500.32,0.00031878,2]
[349306037,1737111043087,-684.5,0.00031878,2]
[349306038,1737111043096,-500.0,0.00031878,2]
[349306039,1737111043105,-500.0,0.00031878,2]
[349306040,1737111043114,-109.8199152,0.00031878,2]
[349306041,1737111043144,-390.1800848,0.00031878,2]
[349306042,1737111043154,-294.25991521,0.00031878,2]
[349306073,1737111043810,-500.0,0.00031877,2]
[349306074,1737111043821,-205.74008479,0.00031878,2]
[349306075,1737111043833,-500.0,0.00031878,2]
[349306076,1737111043843,-500.0,0.00031878,2]
[349306077,1737111043853,-684.5,0.00031878,2]
[349306078,1737111043862,-500.0,0.00031878,2]
[349306079,1737111043872,-500.0,0.00031878,2]
[349306080,1737111043882,-684.5,0.00031878,2]
[349306081,1737111043891,-500.0,0.00031878,2]
[349306082,1737111043900,-5238.5549099,0.00031879,10]
[349306083,1737111043911,-844.0,0.00031879,10]
[349306084,1737111043922,-561.2,0.00031879,10]
[349306085,1737111043941,-438.70222274,0.00031878,2]
[349306086,1737111043950,-292.90290178,0.00031879,10]
[349306087,1737111044075,-307.05,0.00031878,2]
[349306123,1737111045843,-500.0,0.00031877,2]
[349306124,1737111045853,-500.0,0.00031877,2]
[349306125,1737111045863,-597.77,0.00031877,2]
[349306126,1737111045872,-500.0,0.00031877,2]
[349306127,1737111045883,-377.45,0.00031878,2]
[349306128,1737111045892,-500.0,0.00031878,2]
[349306129,1737111045902,-155.887194,0.00031878,2]
[349306130,1737111045912,-155.887194,0.00031878,2]
[349306131,1737111045922,-684.5,0.00031878,2]
[349306132,1737111045934,-500.0,0.00031878,2]
[349306133,1737111045945,-25103.7040703,0.00031879,10]
[349306134,1737111046057,-10005.3462982,0.00031879,10]
[349306135,1737111046071,-40911.0590441,0.00031879,10]
[349306136,1737111046088,-684.5,0.00031878,2]
[349306137,1737111046097,-5696.40799268,0.00031879,10]
[349306138,1737111046111,-414.03,0.00031879,10]
[349306139,1737111046124,-16118.7784286,0.00031879,10]
[349306140,1737111046136,-2867.68085016,0.00031879,10]
[349306141,1737111046167,-62641.22550333,0.00031879,10]
[349306143,1737111046197,-500.0,0.00031877,2]
[349306145,1737111046207,-1996.99,0.00031877,2]
[349306148,1737111046216,-500.0,0.00031878,2]
[349306150,1737111046225,-597.77,0.00031878,2]
[349306152,1737111046235,-2084.89398,0.00031879,10]
[349306200,1737111293931,256.0,0.00019,2]
[349306202,1737111619533,3000.0,0.000232,30]
[349306203,1737111633834,385.3789743,0.00019,2]
[349306204,1737112026179,-255.0,0.0002,2]
[349306205,1737112026202,-255.0,0.00021,2]
[349306206,1737112026224,-255.0,0.00022,2]
[349306207,1737112026246,-255.0,0.00023,2]
[349306208,1737112026267,-500.0,0.000236,2]
[349306209,1737112026289,-128.02458052,0.000236,2]
[349306210,1737112047349,154.75,0.00010137,2]
[349306212,1737112118454,150.0,0.00019,2]
[349306219,1737112231980,-154.75,0.00019198,2]
[349306220,1737112231989,-421.16026506,0.00021,2]
[349306221,1737112232037,-528.16771154,0.00021,2]
[349306222,1737112232046,-159.0,0.00023655,30]
[349306223,1737112232055,-2000.0,0.00024,5]
[349306224,1737112232065,-392.0,0.00024055,2]
[349306225,1737112232074,-361.66,0.00024791,2]
[349306226,1737112232088,-156.995149,0.00024958,2]
[349306227,1737112232098,-1267.908,0.00024998,8]
[349306228,1737112232107,-943.72,0.00024998,2]
[349306229,1737112232116,-1000.0,0.00024999,2]
[349306230,1737112232126,-300.0,0.00024999,2]
[349306231,1737112232135,-3691.543853,0.00025,2]
[349306232,1737112232145,-200.0,0.00025,120]
[349306233,1737112232154,-2415.44182057,0.00025,2]
[349306234,1737112232165,-1164.44999995,0.00025,2]
[349306235,1737112232177,-363.11588827,0.00025,2]
[349306236,1737112232188,-1396.50221221,0.00025,2]
[349306237,1737112232224,-1557.2200182,0.00025,2]
[349306238,1737112232235,-2980.50212332,0.00025,2]
[349306239,1737112232285,-6559.04597816,0.00025,2]
[349306240,1737112232358,-494.11998,0.00025,2]
[349306241,1737112232370,-13069.59197932,0.00025,2]
[349306242,1737112232379,-500.81802442,0.000258,2]
[349306243,1737112232389,-500.0,0.000262,30]
[349306244,1737112232398,-642.73214832,0.000262,30]
[349306245,1737112232408,-500.0,0.000262,30]
[349306246,1737112232417,-1000.0,0.000262,30]
[349306247,1737112232427,-1000.0,0.000262,30]
[349306258,1737112232627,-1000.0,0.000262,30]
[349306260,1737112232636,-1000.0,0.000262,30]
[349306262,1737112232646,-1000.0,0.000262,30]
[349306264,1737112232658,-1000.0,0.000262,30]
[349306266,1737112232669,-600.0,0.000262,30]
[349306268,1737112232677,-1000.0,0.000262,30]
[349306269,1737112232687,-1000.0,0.000262,30]
[349306270,1737112232697,-600.0,0.000262,30]
[349306271,1737112232706,-1000.0,0.000262,30]
[349306272,1737112232715,-600.0,0.000262,30]
[349306273,1737112232726,-1000.0,0.000262,30]
[349306274,1737112232735,-600.0,0.000262,30]
[349306275,1737112232744,-1000.0,0.000262,30]
[349306276,1737112232754,-600.0,0.000262,30]
[349306277,1737112232763,-600.0,0.000262,30]
[349306278,1737112232772,-1000.0,0.000262,30]
[349306279,1737112232781,-600.0,0.000262,30]
[349306280,1737112232790,-1000.0,0.000262,30]
[349306281,1737112232799,-600.0,0.000262,30]
[349306282,1737112232809,-600.0,0.000262,30]
[349306283,1737112232818,-1540.04232016,0.000262,30]
[349306284,1737112232827,-600.0,0.000262,30]
[349306285,1737112232837,-600.0,0.000262,30]
[349306286,1737112232846,-500.0,0.000262,30]
[349306287,1737112232856,-974.85057875,0.000262,30]
[349306288,1737112232865,-600.0,0.000262,30]
[349306289,1737112232874,-600.0,0.000262,30]
[349306290,1737112232883,-925.37341827,0.000262,30]
[349306291,1737112232892,-500.0,0.000262,30]
[349306292,1737112232902,-500.0,0.000262,30]
[349306293,1737112232911,-500.0,0.000262,30]
[349306294,1737112232920,-500.0,0.000262,30]
[349306295,1737112232930,-500.0,0.000262,30]
[349306296,1737112232939,-838.95112052,0.000262,30]
[349306297,1737112232948,-500.0,0.000262,30]
[349306298,1737112232957,-500.0,0.000262,30]
[349306299,1737112232967,-500.0,0.000262,30]
[349306300,1737112232976,-500.0,0.000262,30]
[349306301,1737112232985,-636.62092149,0.000262,30]
[349306302,1737112232994,-964.37485529,0.000262,30]
[349306303,1737112233004,-500.0,0.000262,30]
[349306304,1737112233013,-713.68257533,0.000262,30]
[349306305,1737112233023,-500.0,0.000262,30]
[349306306,1737112233033,-500.0,0.000262,30]
[349306307,1737112233042,-500.0,0.000262,30]
[349306308,1737112233053,-500.0,0.000262,30]
[349306309,1737112233062,-500.0,0.000262,30]
[349306310,1737112233071,-500.0,0.000262,30]
[349306311,1737112233080,-500.0,0.000262,30]
[349306312,1737112233091,-500.0,0.000262,30]
[349306313,1737112233101,-500.0,0.000262,30]
[349306314,1737112233111,-500.0,0.000262,30]
[349306315,1737112233120,-942.55158065,0.000262,30]
[349306316,1737112233130,-500.0,0.000262,30]
[349306317,1737112233139,-500.0,0.000262,30]
[349306318,1737112233148,-500.0,0.000262,30]
[349306319,1737112233158,-500.0,0.000262,30]
[349306320,1737112233167,-500.0,0.000262,30]
[349306321,1737112233177,-500.0,0.000262,30]
[349306322,1737112233186,-805.75954289,0.000262,30]
[349306323,1737112233196,-635.0,0.00026463,2]
[349306324,1737112233205,-567.0,0.00026463,2]
[349306325,1737112233215,-165.36,0.00026789,2]
[349306326,1737112233225,-156.03,0.00026833,2]
[349306327,1737112233234,-562.13,0.00026836,2]
[349306328,1737112233243,-3821.04802544,0.00026844,2]
[349306329,1737112237862,-1520.0,0.00026844,2]
[349306330,1737112237874,-3906.80197456,0.00026844,2]
[349306331,1737112237884,-23900.0,0.00026865,2]
[349306332,1737112237894,-3899.0,0.00026923,2]
[349306333,1737112237904,-150.0,0.00026923,2]
[349306334,1737112237913,-1104.0,0.00026923,2]
[349306335,1737112237923,-160.21645965,0.00026963,2]
[349306336,1737112237933,-20421.62,0.00026991,2]
[349306337,1737112237942,-2000.0,0.00027,2]
[349306338,1737112237951,-550.0,0.00027,2]
[349306339,1737112237961,-2100.016156,0.0002701,2]
[349306340,1737112237970,-7888.16,0.0002704,2]
[349306341,1737112237980,-361.66,0.00027055,2]
[349306342,1737112237989,-1268.0,0.00027063,2]
[349306343,1737112237998,-2016.0,0.00027063,2]
[349306344,1737112238007,-372.0,0.00027082,2]
[349306345,1737112238016,-679.91454849,0.00027184,2]
[349306346,1737112238032,-585.50439881,0.00027184,2]
[349306347,1737112238043,-851.1946922,0.00027184,2]
[349306348,1737112238052,-2116.6136395,0.00027185,2]
[349306349,1737112238061,-2456.41949196,0.00027195,2]
[349306350,1737112238071,-5019.73977892,0.0002721,2]
[349306351,1737112238086,-1501.26519847,0.0002721,2]
[349306352,1737112238098,-941.53953476,0.0002721,2]
[349306353,1737112238109,-4712.83584432,0.0002721,2]
[349306354,1737112238120,-616.29191402,0.00027212,2]
[349306355,1737112238129,-12175.38035647,0.00027226,2]
[349306356,1737112238139,-12175.38035647,0.00027228,2]
[349306357,1737112238149,-2456.41949196,0.00027229,2]
[349306358,1737112238158,-2456.41949196,0.00027245,2]
[349306359,1737112238168,-616.29191402,0.00027247,2]
[349306360,1737112238177,-2456.41949196,0.0002725,2]
[349306361,1737112238186,-616.29191402,0.00027256,2]
[349306362,1737112238196,-3818.25846406,0.00027258,2]
[349306363,1737112238205,-2456.41949196,0.0002726,2]
[349306364,1737112238214,-616.29191402,0.00027271,2]
[349306365,1737112238224,-3818.25846406,0.00027272,2]
[349306366,1737112238233,-12175.38035647,0.00027272,2]
[349306367,1737112238243,-616.29191402,0.0002728,2]
[349306368,1737112238252,-2116.6136395,0.0002729,2]
[349306369,1737112238261,-12175.38035647,0.00027298,2]
[349306370,1737112238271,-3818.25846406,0.000273,2]
[349306371,1737112238281,-2116.6136395,0.00027306,2]
[349306372,1737112238291,-196.32,0.00027306,2]
[349306374,1737112238302,-2116.6136395,0.00027314,2]
[349306375,1737112238312,-3818.25846406,0.00027322,2]
[349306376,1737112238321,-2116.6136395,0.00027324,2]
[349306377,1737112238330,-616.29191402,0.00027324,2]
[349306378,1737112238340,-616.29191402,0.00027328,2]
[349306379,1737112238350,-2456.41949196,0.00027336,2]
[349306380,1737112238360,-3818.25846406,0.00027357,2]
[349306381,1737112238370,-2116.6136395,0.00027357,2]
[349306382,1737112238381,-3818.25846406,0.00027359,2]
[349306384,1737112238391,-2456.41949196,0.00027364,2]
[349306387,1737112238400,-2456.41949196,0.00027368,2]
[349306389,1737112238410,-12175.38035647,0.00027375,2]
[349306390,1737112238420,-12175.38035647,0.00027375,2]
[349306392,1737112238430,-3818.25846406,0.00027378,2]
[349306394,1737112238440,-616.29191402,0.00027378,2]
[349306396,1737112238450,-3818.25846406,0.00027385,2]
[349306397,1737112238460,-12175.38035647,0.00027388,2]
[349306398,1737112238470,-2116.6136395,0.00027393,2]
[349306399,1737112238480,-150.0,0.00027397,2]
[349306400,1737112238489,-162.28,0.00027454,2]
[349306401,1737112238498,-300.0,0.000275,2]
[349306402,1737112238508,-300.0,0.000275,2]
[349306403,1737112238518,-300.0,0.000275,2]
[349306404,1737112238528,-300.0,0.000275,2]
[349306405,1737112238538,-526.97737551,0.000275,2]
[349306406,1737112238547,-1000.0,0.00027836,2]
[349306407,1737112238556,-1000.0,0.00027882,2]
[349306408,1737112238566,-156.14,0.00027911,2]
[349306409,1737112238575,-217.0,0.000282,2]
[349306410,1737112238585,-154.75,0.00028258,2]
[349306411,1737112238595,-166.06896264,0.00028498,30]
[349306412,1737112238606,-6029.94,0.00028498,2]
[349306413,1737112238616,-177.48,0.00028513,91]
[349306414,1737112238626,-217.0,0.0002886,2]
[349306415,1737112238636,-6014.73065915,0.00029,2]
[349306416,1737112238646,-600.0,0.00029,2]
[349306417,1737112238657,-154.54,0.00029252,2]
[349306418,1737112238667,-361.66,0.00029319,2]
[349306419,1737112238677,-635.0,0.00029463,2]
[349306420,1737112238686,-567.0,0.00029463,2]
[349306421,1737112238696,-500.0,0.0002952,7]
[349306422,1737112238705,-1400.0,0.0002952,7]
[349306423,1737112238715,-217.0,0.0002952,2]
[349306424,1737112238725,-154.83661892,0.00029699,2]
[349306425,1737112238735,-3051.4095,0.000297,2]
[349306426,1737112238744,-3314.8077094,0.000297,2]
[349306427,1737112238753,-1569.109897,0.000297,2]
[349306428,1737112238763,-151.72433606,0.000297,5]
[349306429,1737112238772,-5253.54274855,0.000297,2]
[349306430,1737112238782,-178.53292205,0.0002972,2]
[349306431,1737112238791,-387.10659451,0.00029773,5]
[349306432,1737112238800,-162.33186217,0.00029773,5]
[349306433,1737112238810,-168.26,0.00029788,2]
[349306434,1737112238820,-290.33897048,0.00029788,2]
[349306435,1737112238830,-290.33897048,0.0002979,2]
[349306436,1737112238841,-290.33897048,0.0002979,2]
[349306437,1737112238850,-455852.53650784,0.00029796,3]
[349306438,1737112238860,-500.0,0.00029797,2]
[349306439,1737112238869,-500.0,0.00029797,2]
[349306440,1737112238879,-500.0,0.00029797,2]
[349306441,1737112238888,-500.0,0.00029797,2]
[349306442,1737112238898,-530.77233842,0.00029797,2]
[349306443,1737112238908,-500.0,0.00029797,2]
[349306444,1737112238918,-500.0,0.00029797,2]
[349306445,1737112238927,-500.0,0.00029797,2]
[349306446,1737112238937,-500.0,0.00029797,2]
[349306447,1737112238946,-500.0,0.00029797,2]
[349306448,1737112238955,-500.0,0.00029797,2]
[349306449,1737112238965,-500.0,0.00029797,2]
[349306450,1737112238975,-508.49822845,0.00029797,2]
[349306451,1737112238985,-500.0,0.00029797,2]
[349306452,1737112238995,-469076.50467984,0.00029798,9]
[349306453,1737112239019,-1169.558175,0.00029798,9]
[349306454,1737112239031,-236845.36861036,0.00029798,9]
[349306455,1737112239042,-600.46104451,0.00029798,9]
[349306457,1737112240146,-4085.6336,0.00029798,9]
[349306458,1737112240158,-15635.35710604,0.00029798,9]
[349306459,1737112240328,-2763.0,0.00029798,9]
[349306460,1737112240341,-10572.50379836,0.00029798,9]
[349306461,1737112240354,-680.14313118,0.00029798,9]
[349306473,1737112243100,-3673.95439888,0.00026923,2]
[349306474,1737112243110,-4827.3072916,0.00029798,9]
[349306475,1737112243122,-1644.5419948,0.00029798,9]
[349306476,1737112243152,-3039.9,0.00029798,9]
[349306477,1737112243274,-2611.45,0.00029798,9]
[349306478,1737112243323,-15.88919564,0.00029798,9]
[349306481,1737112245933,-500.0,0.00029797,2]
[349306482,1737112245942,-5880.90799268,0.00029798,9]
[349306483,1737112246047,-3695.21734289,0.00029798,9]
[349306484,1737112246078,-376.87925389,0.00029798,9]
[349306485,1737112246109,-402.762874,0.00029798,9]
[349306486,1737112246142,-1710.2,0.00029798,9]
[349306487,1737112246173,-501.36163651,0.00029798,9]
[349306488,1737112246203,-360.08234564,0.00029798,9]
[349306496,1737112986163,151.81,0.00010137,2]
[349306498,1737113235123,-151.81,0.00019895,2]
[349306499,1737113235145,-431.82298073,0.000199,2]
[349306500,1737113247134,-429.10362885,0.000199,2]
[349306501,1737113247155,-150.0,0.00019999,2]
[349306502,1737113247176,-981.0281378,0.0002,2]
[349306503,1737113281359,122888.5751481,0.0001,2]
[349306505,1737113349070,-324.2116231,0.000199,2]
[349306506,1737113349091,-4093.23493608,0.0002,2]
[349306507,1737113350114,-25773.82469345,0.0002,2]
[349306508,1737113358099,-334.27537052,0.0002,2]
[349306517,1737113432291,-1882.00620346,0.0002,2]
[349306518,1737113432304,-9936.95223718,0.0002,2]
[349306519,1737113432316,-10134.61153273,0.0002,2]
[349306520,1737113432424,-4807.04389375,0.0002,2]
[349306521,1737113432437,-594.9933518,0.0002,2]
[349306522,1737113432451,-32364.67033318,0.0002,2]
[349306523,1737113432462,-93056.95120816,0.0002,2]
[349306524,1737113432550,-7607.16056629,0.0002,2]
[349306525,1737113438093,-9043.6784214,0.0002,2]
[349306526,1737113438217,-2570.75464614,0.0002,2]
[349306527,1737113438503,-1663.18704552,0.0002,2]
[349306543,1737113440564,-2835.104616,0.0002,2]
[349306544,1737113440694,-2729.23358634,0.0002,2]
[349306545,1737113440706,-759.675,0.0002,2]
[349306546,1737113440818,-669.23,0.0002,2]
[349306547,1737113440850,-4947.74654224,0.0002,2]
[349306548,1737113440885,-520.0,0.0002,2]
[349306569,1737113443328,-3448.605571,0.0002,2]
[349306570,1737113443340,-3371.0,0.0002,2]
[349306571,1737113443351,-1487.54274739,0.0002,2]
[349306572,1737113443449,-698.384581,0.0002,2]
[349306587,1737113446294,-2025.70353093,0.0002,2]
[349306588,1737113446305,-4539.24573218,0.0002,2]
[349306589,1737113446327,-2174.3,0.0002,2]
[349306590,1737113446451,-4717.6959659,0.0002,2]
[349306591,1737113446463,-89734.27446651,0.0002,2]
[349306592,1737113446473,-297.76046609,0.0002,2]
[349306593,1737113446482,-4254.11151821,0.0002,2]
[349306594,1737113446492,-7500.0,0.0002,2]
[349306595,1737113446502,-3445.96615258,0.0002,2]
[349306596,1737113446513,-379.87342028,0.0002,2]
[349306597,1737113446523,-58571.50019864,0.0002,2]
[349306598,1737113446532,-28976.22044368,0.0002,2]
[349306599,1737113446543,-180.55955559,0.0002,2]
[349306600,1737113446552,-320.12017022,0.0002,2]
[349306601,1737113446564,-1142.58673869,0.00021,2]
[349306602,1737113446574,-188.5333456,0.00021,2]
[349306603,1737113446583,-4492.95227461,0.0002152,2]
[349306604,1737113446592,-7236.75224276,0.000217,2]
[349306605,1737113446602,-40039.39912816,0.00021841,2]
[349306606,1737113446611,-312.80282956,0.000219,2]
[349306607,1737113446620,-245.43637824,0.00022,2]
[349306608,1737113446629,-127933.02884841,0.00022,2]
[349306609,1737113446639,-1352.58,0.00023661,2]
[349306610,1737113446648,-2004.18227198,0.00023661,2]
[349306611,1737113446657,-22519.46869526,0.00023661,2]
[349306612,1737113446666,-1880.23301428,0.00023661,2]
[349306613,1737113446678,-3124.13635998,0.00023661,2]
[349306614,1737113446687,-15011.42510079,0.00023661,2]
[349306615,1737113446696,-1000.01316369,0.00023661,2]
[349306616,1737113446706,-500.0,0.00024657,2]
[349306617,1737113446715,-1758.3,0.00024657,2]
[349306618,1737113446724,-665.93,0.00024657,2]
[349306619,1737113446734,-500.0,0.00024657,2]
[349306620,1737113446743,-500.0,0.00024657,2]
[349306621,1737113446752,-1109.28,0.00024657,2]
[349306622,1737113446761,-500.0,0.00024657,2]
[349306623,1737113446771,-500.0,0.00024657,2]
[349306625,1737113446780,-500.0,0.00024657,2]
[349306626,1737113446789,-500.0,0.00024657,2]
[349306627,1737113446798,-500.0,0.00024657,2]
[349306628,1737113446808,-500.0,0.00024657,2]
[349306630,1737113446817,-500.0,0.00024657,2]
[349306631,1737113446826,-344.0849957,0.00024657,2]
[349306632,1737113446835,-500.0,0.00024657,2]
[349306633,1737113446844,-500.0,0.00024657,2]
[349306634,1737113446854,-500.0,0.00024657,2]
[349306635,1737113447006,-500.0,0.00024657,2]
[349306636,1737113447020,-500.0,0.00024657,2]
[349306637,1737113447029,-500.0,0.00024657,2]
[349306638,1737113447042,-335.18679328,0.00024657,2]
[349306639,1737113447054,-164.81320672,0.00024657,2]
[349306640,1737113447063,-500.0,0.00024657,2]
[349306641,1737113447072,-81.56476218,0.00024657,2]
[349306642,1737113447085,-418.43523782,0.00024657,2]
[349306643,1737113447095,-500.0,0.00024657,2]
[349306644,1737113447104,-188.25696368,0.00024657,2]
[349306645,1737113447131,-311.74303632,0.00024657,2]
[349306646,1737113447141,-254.41328568,0.00024657,2]
[349306648,1737113665014,187.16,0.00012329,2]
[349306660,1737113884520,154.9,0.00010137,2]
[349306661,1737113998555,1854.96462714,0.00019,2]
[349306664,1737114425128,-313.82430592,0.000199,2]
[349306665,1737114438136,-128.53765908,0.000199,2]
[349306666,1737114438158,-456.56229937,0.0002,2]
[349306667,1737114450094,-1396.43770063,0.0002,2]
[349306668,1737114450116,-347.42065964,0.00021,2]
[349306669,1737114550114,-158.33666267,0.000208,10]
[349306670,1737114550135,-300.0,0.00020999,2]
[349306671,1737114550157,-304.04091168,0.00021,2]
[349306672,1737114559167,-1139.67266391,0.0001955,2]
[349306685,1737114632373,-15.40192758,0.0001955,2]
[349306686,1737114632382,-2573.29046328,0.000209,2]
[349306687,1737114632391,-1201.53842868,0.00021,2]
[349306688,1737114632401,-2323.7648502,0.00021516,2]
[349306689,1737114632410,-150.0,0.00021616,2]
[349306690,1737114632419,-5723.60433026,0.00021616,2]
[349306691,1737114632480,-3112.60000001,0.00021616,2]
[349306692,1737114632491,-14612.98937228,0.00021616,2]